Cogmind - Beta 14 @@@ ROGUE MODE // 2024.10.08 @ 00:27:10 Player: Awoo-Bot Result: Destroyed by 8T-IPX(R) with Subdweller Machine Gun Performance ------------- Evolutions (0) 0 Regions Visited (2) 400 Robots Destroyed (20) 100 Value Destroyed (484) 484 Prototype IDs (4) 80 Alien Tech Used (0) 0 Bonus (0) 0 TOTAL SCORE: 1064 Bonus ------- None Cogmind --------- Core Integrity 0/250 Matter 14/300 Energy 100/100 System Corruption 0% Temperature Cool (0) Movement Core (700) Ox13 Location -10/Subcaves Parts ------- > --- POWER (1) -------- (None) > --- PROPULSION (2) --- (None) > --- UTILITY (2) ------ High-capacity Storage Unit > --- WEAPON (2) ------- Mini Grenade Launcher > --- INVENTORY (20) --- Ion Engine Light Treads Wheel Improved Heat Sink Cooling System Seismic Detector Improved EM Shotgun Improved EM Shotgun Improved EM Shotgun Improved EM Shotgun Assault Rifle Assault Rifle Assault Rifle Assault Rifle Assault Rifle Mini Grenade Launcher Mining Laser Peak State ------------ > --- POWER ------------ Ion Engine > --- PROPULSION ------- Light Treads Wheel > --- UTILITY ---------- High-capacity Storage Unit Seismic Detector > --- WEAPON ----------- Assault Rifle Mini Grenade Launcher > --- INVENTORY -------- Ion Engine Light Ion Engine Light Treads Wheel Improved Heat Sink Cooling System Improved EM Shotgun Improved EM Shotgun Improved EM Shotgun Improved EM Shotgun Assault Rifle Assault Rifle Light Assault Rifle Light Assault Rifle Mini Grenade Launcher Mini Grenade Launcher Mining Laser [Rating: 11] Favorites ----------- Power Ion Engine Engine Ion Engine Propulsion Light Treads Treads Light Treads Wheel Wheel Utility Seismic Detector Device Seismic Detector Storage High-capacity Storage Unit Protection Light Armor Plating Weapon Assault Rifle Ballistic Gun Assault Rifle Launcher Mini Grenade Launcher Special Weapon Mining Laser Build | -11 -10 -10 ------- Run | Yrd Mat Sub Slots Evolved . | . . . Power . | . . . Propulsion . | . . . Utility . | . . . Weapon . | . . . Parts Attached 26 | 7 14 5 Power 3 | 1 2 . Engine 3 | 1 2 . Core . | . . . Reactor . | . . . Propulsion 4 | 2 1 1 Treads 2 | 1 . 1 Leg . | . . . Wheel 2 | 1 1 . Hover . | . . . Flight . | . . . Utility 5 | 2 2 1 Device 1 | 1 . . Storage 3 | 1 2 . Processor . | . . . Hackware . | . . . Protection 1 | . . 1 Artifact . | . . . Weapon 14 | 2 9 3 Energy Gun . | . . . Energy Cannon . | . . . Ballistic Gun 8 | 2 5 1 Ballistic Cannon . | . . . Launcher 4 | . 2 2 Special Weapon 2 | . 2 . Impact Weapon . | . . . Slashing Weapon . | . . . Piercing Weapon . | . . . Special Melee Weapon . | . . . Unidentified Prototypes . | . . . Parts Lost 5 | . . 5 Power 1 | . . 1 Propulsion 2 | . . 2 Utility 1 | . . 1 Weapon 1 | . . 1 Highest Loss Streak 5 | . . 5 To Critical Strikes 1 | . . 1 Average Slot Usage (%) 96 | . 100 80 Engine 13 | . 14 9 Treads 13 | . 14 11 Wheel 13 | . 14 9 Device 13 | . 14 7 Storage 14 | . 14 14 Ballistic Gun 25 | . 27 17 Launcher 1 | . . 7 Peak Build Rating 11 | 7 11 10 Average Rating 8 | 5 8 8 On Entrance 5 | . 7 10 Naked Turns . | . . . Heaviest Build 51 | 13 50 51 Greatest Support 20 | 20 16 10 Greatest Overweight (x) 14 | . 4 14 Average Overweight (x) 2 | . 2 4 Largest Inventory Capacity 20 | 8 20 20 Average Capacity 17 | 7 17 20 Most Carried 20 | 5 20 17 Average Carried 12 | 3 11 17 Final Capacity 20 | 8 20 20 Final Carried 17 | 5 17 17 Class Distribution -------------------- 100% | Mutant Dominant Class ---------------- Mutant | -10/Materials Mutant | -10/Subcaves Resources | -11 -10 -10 ----------- Run | Yrd Mat Sub Matter Collected 632 | 300 303 29 Remotely . | . . . Salvage Created 498 | 114 316 68 Parts 33 | 10 19 4 Haulers Intercepted 1 | . 1 . Recyclers Shooed 1 | 1 . . Parts Field Recycled . | . . . Retrieved Matter . | . . . Parts Self-Destructed . | . . . Prevented . | . . . Kills | -11 -10 -10 ------- Run | Yrd Mat Sub Combat Hostiles Destroyed 14 | . 9 5 Guns 8 | . 7 1 AOE 6 | . 2 4 Classes Destroyed 7 | 2 4 1 Worker 2 | . 2 . Tunneler 2 | 2 . . Hauler 1 | . 1 . Recycler 1 | 1 . . Swarmer 3 | . 3 . Grunt 6 | . 6 . Subdweller 5 | . . 5 Best Kill Streak 4 | 3 3 4 Combat Bots Only 4 | . 3 4 Max Kills in Single Turn 1 | 1 1 1 Gunslinging . | . . . Exploded 1 | . 1 1 Melee . | . . . Uniques/NPCs Destroyed . | . . . Combat | -11 -10 -10 -------- Run | Yrd Mat Sub Hostile Shots Fired 80 | . 39 41 Missed 20 | . 12 8 Damage Taken 1190 | . 330 860 Core 262 | . 66 196 Absorbed by Shields . | . . . Core Remaining (%) 100 | 100 . . Volleys Fired 61 | 5 36 20 Largest 2 | 2 2 2 Hottest 120 | 40 120 50 Shots Fired 107 | 10 67 30 Gun 81 | 10 61 10 Cannon . | . . . Launcher 24 | . 4 20 Special 2 | . 2 . Kinetic 81 | 10 61 10 Thermal 2 | . 2 . Explosive 24 | . 4 20 Electromagnetic . | . . . Robot Hit Streak 15 | 4 5 15 Robot Miss Streak 2 | 1 2 . Penetration Max . | . . . Secondary Targets 1 | . 1 . Max Gunslinging Chain 1 | . 1 . Shots Hit Robots 59 | 7 41 11 Core Hits 36 | 4 21 11 Critical Kills . | . . . Critical Parts Destroyed 1 | 1 . . Critical Strikes 1 | 1 . . Destroy 1 | 1 . . Melee Attacks . | . . . Impact . | . . . Slashing . | . . . Piercing . | . . . Sneak Attacks . | . . . Combat Hostiles . | . . . Follow-up Attacks . | . . . Damage Inflicted 1774 | 92 761 921 Guns 650 | 92 495 63 Cannons . | . . . Explosions 1124 | . 266 858 Melee . | . . . Ramming . | . . . Kinetic 650 | 92 495 63 Thermal . | . . . Explosive 1124 | . 266 858 Electromagnetic . | . . . Impact . | . . . Slashing . | . . . Piercing . | . . . Highest Corruption . | . . . Average Corruption . | . . . Corruption Purged . | . . . Corruption Blocked . | . . . Overload Shots . | . . . Overflow Damage . | . . . Projectiles . | . . . Explosions . | . . . Melee . | . . . Knockbacks . | . . . Impact . | . . . Kinetic . | . . . Secondary . | . . . Self-Inflicted Damage 177 | . 40 137 Shots 8 | . 1 7 Rammed . | . . . Targets Rammed . | . . . Kicked . | . . . Crushed . | . . . Highest Temperature 243 | . 20 243 Average Temperature 53 | . 7 131 Received Heat Transfer 476 | . 144 332 Siege Activations . | . . . Robots Corrupted . | . . . Combat Hostiles . | . . . Parts Fried . | . . . Impact Corruptions . | . . . Robots Melted . | . . . Combat Hostiles . | . . . Parts Melted . | . . . Heat Transferred . | . . . Parts Sabotaged . | . . . Parts Stolen . | . . . Parts Stripped . | . . . Power Chain Reactions . | . . . Alert | -11 -10 -10 ------- Run | Yrd Mat Sub Peak Influence 213 | 15 213 . Initial 9 | . 9 . Average 97 | 6 104 . Maximum Alert Level 1 | . 1 . Low Security (%) 91 | 100 90 . Level 1 8 | . 9 . Level 2 . | . . . Level 3 . | . . . Level 4 . | . . . Level 5 . | . . . High Security . | . . . Max Security . | . . . Squads Dispatched . | . . . Investigation . | . . . Extermination . | . . . Reinforcement . | . . . Assault . | . . . Garrison . | . . . Intercept . | . . . Searches Triggered . | . . . Construction Impeded . | . . . Haulers Reinforced . | . . . Active Scanning Responses . | . . . Cargo Convoy Interrupts . | . . . Stealth | -11 -10 -10 --------- Run | Yrd Mat Sub Distress Signals 2 | . 2 . Communications Jammed . | . . . Distress Signals . | . . . Times Spotted 28 | . 21 7 Peak Tracking Total 5 | . 5 3 Tactical Retreats 1 | . 1 . Traps | -11 -10 -10 ------- Run | Yrd Mat Sub Traps Triggered . | . . . Indirectly . | . . . Trap Hack Attempts . | . . . Triggered . | . . . Disarmed . | . . . Reprogrammed . | . . . Reused . | . . . Traps Extracted . | . . . Installed . | . . . Triggered . | . . . Machines | -11 -10 -10 ---------- Run | Yrd Mat Sub Machines Disabled . | . . . Max in Single Turn . | . . . Machines Repaired . | . . . Machines Dismantled . | . . . Machines Sabotaged . | . . . Overloaded Fab Kills . | . . . Hacking | -11 -10 -10 --------- Run | Yrd Mat Sub Machines Accessed 8 | . 8 . Terminals 8 | . 8 . Fabricators . | . . . Repair Stations . | . . . Recycling Units . | . . . Scanalyzers . | . . . Garrison Access . | . . . Total Hacks 29 | . 29 . Successful 17 | . 17 . Failed 12 | . 12 . Catastrophic . | . . . Database Lockouts . | . . . Manual 27 | . 27 . Terminals 29 | . 29 . Fabricators . | . . . Repair Stations . | . . . Recycling Units . | . . . Scanalyzers . | . . . Garrison Access . | . . . Terminal Hacks 4 | . 4 . Prototype ID Bank 2 | . 2 . Unreport Threat 2 | . 2 . Fabricator Hacks . | . . . Repair Station Hacks . | . . . Recycling Unit Hacks . | . . . Scanalyzer . | . . . Garrison Access Hacks . | . . . Unauthorized Hacks 13 | . 13 . Terminals 13 | . 13 . Track 1 | . 1 . Botnet 7 | . 7 . Skim 5 | . 5 . Fabricators . | . . . Repair Stations . | . . . Recycling Units . | . . . Scanalyzers . | . . . Garrison Access . | . . . Data Cores Recovered . | . . . Used . | . . . Hacking Detections 6 | . 6 . Full Trace Events 1 | . 1 . Feedback Events . | . . . Feedback Blocked . | . . . Robot Schematics Acquired . | . . . Robots Built . | . . . Authchips . | . . . Time . | . . . Total Robot Build Rating . | . . . Part Schematics Acquired . | . . . Parts Built . | . . . Authchips . | . . . Time . | . . . Total Part Build Rating . | . . . Parts Repaired . | . . . Time . | . . . Parts Recycled . | . . . Recycled Matter . | . . . Retrieved Matter . | . . . Retrieved Components . | . . . Parts Scanalyzed . | . . . Part Schematics Acquired . | . . . Parts Damaged . | . . . Bothacking | -11 -10 -10 ------------ Run | Yrd Mat Sub Used RIF Installer . | . . . Robots Hacked . | . . . Non-combat . | . . . Combat . | . . . Robot Hacks Applied . | . . . Relay Couplers Released . | . . . Fabnet Peak Effective % . | . . . Robots Rewired . | . . . Allies Hacked . | . . . Hacks Repelled . | . . . Allies | -11 -10 -10 -------- Run | Yrd Mat Sub Total Allies . | . . . Largest Group . | . . . Highest-Rated Group . | . . . Highest-Rated Ally . | . . . Total Orders . | . . . Ally Attacks . | . . . Total Damage . | . . . Kills . | . . . Allies Corrupted . | . . . Allies Melted . | . . . Intel | -11 -10 -10 ------- Run | Yrd Mat Sub Robot Analysis Total . | . . . Derelict Logs Recovered . | . . . Drone Launches . | . . . Drone Recoveries . | . . . Exploration | -11 -10 -10 ------------- Run | Yrd Mat Sub Turns Passed 1351 | 91 1062 198 Spaces Moved 822 | 55 695 72 Core 10 | 3 . 7 Treads 1 | 1 . . Legs . | . . . Wheels 811 | 51 695 65 Hover . | . . . Flight . | . . . Fastest Speed 50 | 50 100 140 Average Speed 132 | 98 128 196 Slowest Speed 750 | 160 140 750 Overloaded Moves . | . . . Propulsion Burnouts . | . . . Robots Hopped . | . . . Cave-ins Triggered . | . . . Exploration Rate (%) 37 | 4 98 10 Regions Visited 2 Branch Regions 1 Pre-discovered Areas . | . . . Known Exits Taken . | . . . Unknown Exits Taken 2 | 1 1 . Scrap Searched . | . . . Spaces Dug 36 | . 2 34 Terrain Destroyed 166 | . 15 151 Melee . | . . . Projectile 2 | . 2 . AOE 164 | . 13 151 Terrain Rammed . | . . . Walls Destroyed . | . . . Machines Disabled . | . . . Actions | -11 -10 -10 --------- Run | Yrd Mat Sub Total 970 | 78 793 99 Wait 24 | 7 15 2 Move 820 | 54 694 72 Hop . | . . . Pick Up 24 | 5 19 . Fast Attach 7 | 7 . . Attach . | . . . Detach . | . . . Swap 19 | . 14 5 Drop 15 | . 15 . Fire 61 | 5 36 20 Melee . | . . . Ram . | . . . Kick . | . . . Crush . | . . . Escape Stasis . | . . . Rewire . | . . . Trap . | . . . Miscellaneous . | . . . Route ------- -11/Scrapyard -10/Materials (discovered 6 exits: [*Mat x3] / [*Min x2] / [*Sub]) -10/Subcaves History --------- Turn | Location | Event 19 | -11/Scrapyard | Discovered new exit (range 16) 92 | -11/Scrapyard | Entered Materials 134 | -10/Materials | Discovered new exit (range 15) 332 | -10/Materials | Build established: Mutant 389 | -10/Materials | Discovered new exit (range 10) 562 | -10/Materials | Discovered new exit (range 14) 713 | -10/Materials | Discovered new exit (range 13) 1064 | -10/Materials | Discovered new exit (range 8) 1140 | -10/Materials | Discovered new exit (range 11) 1154 | -10/Materials | Entered Subcaves 1157 | -10/Subcaves | Ambushed by Subdwellers from Twisted Machinery 1163 | -10/Subcaves | Ambushed by Subdweller buried in earth 1304 | -10/Subcaves | Core integrity fell below 50% 1332 | -10/Subcaves | Core integrity fell below 20% 1352 | -10/Subcaves | Lost 5 parts (1p2n1u1w) 1352 | -10/Subcaves | Destroyed by 8T-IPX(R) with Subdweller Machine Gun Last Messages --------------- 01183_ The unstable cave ceiling collapses. 01186_ Acquired 13 matter. 01188_ The unstable cave ceiling collapses. 01197_ Acquired 16 matter. 01203_ The unstable cave ceiling collapses. 01203_ Sub. Monowheel crushed. 01279_ The unstable cave ceiling collapses. 01285_ Ion Engine destroyed. 01286_ 8T-IPX(R): "ARGHSUB!" 01287_ Wheel destroyed. 01287_ Critical hit (Meltdown: +260). 01288_ The unstable cave ceiling collapses. 01291_ EW-PI8(R) destroyed. 01298_ 8T-IPX(R) affixes Scrap Shield Fragment to Scrap Shield. 01299_ Lgt. Armor Plating destroyed. 01302_ The unstable cave ceiling collapses. 01317_ Critical hit (Destroy). 01317_ Assault Rifle destroyed. 01321_ Lgt. Treads destroyed. 01338_ The unstable cave ceiling collapses. Map ----- +----------------------------------------------------+ | ?????????????????????????????????????????????? | | ?????????????????????????????????????????????? | | ?????????????????????????????????????????????? | | ?????????????????????????????????????????????? | | ?????????????????????????????????????????????? | | ?????????????????????????????????????????????? | | ??????????????????????? ??????????????????? | | ????????????????????##? ??????????????? | | ???????????????????# ## ??????????????? | | ?????????????????## ?????????????? | | ????????????????## ?????????????? | | ???????????????## ?????????????? | | ???????????????# ??????????????? | | ???????????????# #???????????????? | | ???????????????# # #?????????????????? | | ???????????????# ###???????????????? | | ???????????????## ## ???????????? | | ??????????????## # # ??????????????? | | ??????????????# # #??????????????????? | | ???????????????# #????????????????????? | | ???????????????# # ##????????????????????? | | ???????????????## ###?????????????????????? | | ???????????????### #???????????????????????? | | ??????????????## #???????????????????????? | | ??????????????# ####???? ??????????????? | | ??????????????# R@ #### #????????????? | | ??????????????# #????????????? | | ??????????????# ??????????? | | ??????????????# #### # ??????????? | | ??????????????# ##???????? ?????????? | | ??????????????## #####???????????????????? | | ???????????????# ## #???????????????????? | | ???????????????# #???????????????????? | | ???????????????# #???????????????????? | | ???????????????## #???????????????????? | | ????????????????# ##???????????????????? | | ????????????????# #????????????????????? | | ????????????????# #????????????????????? | | ???????????????## ##????????????????????? | | ??????????????## #?????????????????????? | | ??????????????# ##?????????????????????? | | ??????????????## ##??????????????????????? | | ???????????????## #???????????????????????? | | ????????????????## #???????????????????????? | | ?????????????????# #???????????????????????? | | ?????????????????# ##??????????????????????? | | ?????????????????# ##?????????????????????? | | ????????????????## #?????????????????????? | | ??????????????### ##?????????????????????? | | ??????????????# #??????????????????????? | +----------------------------------------------------+ Best States ------------- Heat Dissipation 25 Energy Generation 10 Energy Capacity 250 Matter Stores 300 Matter Capacity 300 Sight Range 16 Terrain Scan Density 10 Armor Coverage 150 Evasion (%) 40 Recoil Reduction 1 Item Schematics ----------------- None Robot Schematics ------------------ None Fabricated ------------ Nothing Alien Tech Used ----------------- None Achievements -------------- None Challenges ------------ None Game ------ Seed GreatDynamicInitializer Manual? 0 Play Time 00:19:52 Cumulative 75.4 hours Start 2024.10.07 @ 23:23:20 End 2024.10.08 @ 00:27:10 Sessions 1 Manual Loads 0 Difficulty Rogue Special Mode None Game No. 126 Rogue 98 Adventurer 28 Explorer 0 Win Type - Total 0 Types 0/0/0/0/0/0/0/0/0 Lore% 15 Gallery% 29 Achievement% 31 Wizard Run 0 Options --------- Layout 0 ASCII 0 Keyboard 0 Movement Numpad Keybinds 0 Fullscreen 1 Font 36/Smallcaps Map View 76x50 Zoom Use 0% Tactical HUD 1 Map Filters NONE Filters NONE Steam 1 RUN: c56e6eb2-87cd-4f45-8b39-538b3f5e65a1